[Event "Early-Titled-Tuesday-Blitz-January-23-2024"]
[Site "Chess.com"]
[Date "2024.01.23"]
[Round "2"]
[White "ama18"]
[Black "flomarechot"]
[Result "1-0"]
[WhiteElo "2521"]
[BlackElo "2263"]
[TimeControl "180+1"]
[EndTime "8:16:45 PST"]
[Termination "ama18 won on time"]

1. Nf3 {[%clk 0:02:57]} 1... Nf6 {[%clk 0:02:58.7]} 2. g3 {[%clk 0:02:55.8]}
2... g6 {[%clk 0:02:58.9]} 3. b3 {[%clk 0:02:52.6]} 3... Bg7 {[%clk 0:02:59.1]}
4. Bb2 {[%clk 0:02:53.2]} 4... O-O {[%clk 0:02:59.7]} 5. Bg2 {[%clk 0:02:53.2]}
5... d6 {[%clk 0:03:00.3]} 6. d4 {[%clk 0:02:53.4]} 6... Nbd7 {[%clk 0:03:00.8]}
7. O-O {[%clk 0:02:54]} 7... e5 {[%clk 0:03:01.3]} 8. dxe5 {[%clk 0:02:54]} 8...
Ng4 {[%clk 0:03:01.9]} 9. c4 {[%clk 0:02:54.2]} 9... Ngxe5 {[%clk 0:03:01.9]}
10. Nxe5 {[%clk 0:02:52.8]} 10... Nxe5 {[%clk 0:03:01.8]} 11. Nc3 {[%clk
0:02:50.4]} 11... c6 {[%clk 0:02:49.6]} 12. Qd2 {[%clk 0:02:48.6]} 12... Qc7
{[%clk 0:02:36.9]} 13. h3 {[%clk 0:02:47.5]} 13... Re8 {[%clk 0:02:09]} 14. f4
{[%clk 0:02:46]} 14... Nd7 {[%clk 0:02:08.9]} 15. e4 {[%clk 0:02:45.9]} 15... a5
{[%clk 0:01:53.5]} 16. Rad1 {[%clk 0:02:44.3]} 16... Bf8 {[%clk 0:01:53.5]} 17.
Ba3 {[%clk 0:02:42.6]} 17... Nc5 {[%clk 0:01:53.7]} 18. Rfe1 {[%clk 0:02:42.1]}
18... Qb6 {[%clk 0:01:41.6]} 19. Qf2 {[%clk 0:02:34.9]} 19... Bg7 {[%clk
0:00:55.9]} 20. e5 {[%clk 0:02:29]} 20... Bf5 {[%clk 0:00:23.7]} 21. Rxd6 {[%clk
0:02:24.7]} 21... Nd7 {[%clk 0:00:14.3]} 22. g4 {[%clk 0:02:19]} 22... Be6
{[%clk 0:00:13.9]} 23. Qxb6 {[%clk 0:01:46.9]} 23... Nxb6 {[%clk 0:00:14.8]} 24.
Ne4 {[%clk 0:01:47.4]} 24... Bf8 {[%clk 0:00:12.6]} 25. Nf6+ {[%clk 0:01:45.9]}
25... Kh8 {[%clk 0:00:10.7]} 26. Nxe8 {[%clk 0:01:44.2]} 26... Rxe8 {[%clk
0:00:11.6]} 27. Red1 {[%clk 0:01:43.7]} 27... Bxd6 {[%clk 0:00:11.5]} 28. Bxd6
{[%clk 0:01:43.6]} 28... Rd8 {[%clk 0:00:10.3]} 29. Bf3 {[%clk 0:01:42.1]} 29...
Kg8 {[%clk 0:00:07.3]} 30. Bc7 {[%clk 0:01:42]} 30... Rxd1+ {[%clk 0:00:07]} 31.
Bxd1 {[%clk 0:01:42.9]} 31... Nd7 {[%clk 0:00:05.8]} 32. Bxa5 {[%clk 0:01:42.3]}
32... Nc5 {[%clk 0:00:05.2]} 33. Bc2 {[%clk 0:01:40.7]} 33... f5 {[%clk
0:00:02.8]} 34. exf6 {[%clk 0:01:38.3]} 34... h6 {[%clk 0:00:02.3]} 35. Kf2
{[%clk 0:01:37.6]} 35... Kf7 {[%clk 0:00:02.4]} 36. g5 {[%clk 0:01:37.2]} 36...
hxg5 {[%clk 0:00:03.3]} 37. fxg5 {[%clk 0:01:38.1]} 37... Bxh3 {[%clk
0:00:03.9]} 38. Kg3 {[%clk 0:01:38]} 38... Be6 {[%clk 0:00:03.1]} 39. Kf4 {[%clk
0:01:37.4]} 39... Nd7 {[%clk 0:00:02.7]} 40. Bc7 {[%clk 0:01:34.6]} 40... Bh3
{[%clk 0:00:02.8]} 41. Bd1 {[%clk 0:01:32.8]} 41... Bf5 {[%clk 0:00:01.5]} 42.
Bf3 {[%clk 0:01:26.3]} 1-0

[Event "Early-Titled-Tuesday-Blitz-January-23-2024"]
[Site "Chess.com"]
[Date "2024.01.23"]
[Round "2"]
[White "ViIIagra"]
[Black "Skatchkov_V"]
[Result "1-0"]
[WhiteElo "2978"]
[BlackElo "2622"]
[TimeControl "180+1"]
[EndTime "8:16:46 PST"]
[Termination "ViIIagra won on time"]

1. c3 {[%clk 0:02:59.9]} 1... d5 {[%clk 0:02:58.8]} 2. g3 {[%clk 0:02:56.8]}
2... Nc6 {[%clk 0:02:52.1]} 3. Bg2 {[%clk 0:02:55]} 3... Bf5 {[%clk 0:02:52.1]}
4. Qb3 {[%clk 0:02:53.9]} 4... e6 {[%clk 0:02:28]} 5. Qxb7 {[%clk 0:02:53.5]}
5... Na5 {[%clk 0:02:27.9]} 6. Qa6 {[%clk 0:02:38.1]} 6... Nc4 {[%clk
0:01:04.8]} 7. e4 {[%clk 0:02:20.3]} 7... Bg6 {[%clk 0:00:40.7]} 8. exd5 {[%clk
0:02:18.8]} 8... Ne5 {[%clk 0:00:36.5]} 9. Be4 {[%clk 0:01:22.6]} 9... Bxe4
{[%clk 0:00:28.2]} 10. Qa4+ {[%clk 0:01:22.7]} 10... c6 {[%clk 0:00:21]} 11.
Qxe4 {[%clk 0:01:22.6]} 11... Qxd5 {[%clk 0:00:19]} 12. Qxd5 {[%clk 0:01:22.8]}
12... exd5 {[%clk 0:00:17.3]} 13. Ke2 {[%clk 0:01:22.4]} 13... Nf6 {[%clk
0:00:14.8]} 14. d4 {[%clk 0:01:22.8]} 14... Nc4 {[%clk 0:00:14.3]} 15. b3 {[%clk
0:01:17.7]} 15... Nd6 {[%clk 0:00:12]} 16. f3 {[%clk 0:01:16.4]} 16... Kd7
{[%clk 0:00:12]} 17. Kd3 {[%clk 0:01:16.3]} 17... Re8 {[%clk 0:00:11.4]} 18. Ne2
{[%clk 0:01:16.4]} 18... h5 {[%clk 0:00:07.9]} 19. Na3 {[%clk 0:00:57.4]} 19...
Nf5 {[%clk 0:00:07.9]} 20. Nc2 {[%clk 0:00:57.9]} 20... Bd6 {[%clk 0:00:08]} 21.
Bd2 {[%clk 0:00:56.8]} 21... h4 {[%clk 0:00:07.9]} 22. g4 {[%clk 0:00:56]} 22...
Ne4 {[%clk 0:00:06.7]} 23. fxe4 {[%clk 0:00:50.7]} 23... dxe4+ {[%clk
0:00:05.6]} 24. Kc4 {[%clk 0:00:51.1]} 24... Ne7 {[%clk 0:00:04.5]} 25. Ne3
{[%clk 0:00:49.7]} 25... Nd5 {[%clk 0:00:02.7]} 26. Nxd5 {[%clk 0:00:45.1]}
26... cxd5+ {[%clk 0:00:02.8]} 27. Kxd5 {[%clk 0:00:46]} 27... Rc8 {[%clk
0:00:01.1]} 28. Kxe4 {[%clk 0:00:45.3]} 1-0

[Event "Early-Titled-Tuesday-Blitz-January-23-2024"]
[Site "Chess.com"]
[Date "2024.01.23"]
[Round "2"]
[White "HanSchut"]
[Black "Kotlyar_K"]
[Result "0-1"]
[WhiteElo "2248"]
[BlackElo "2505"]
[TimeControl "180+1"]
[EndTime "8:16:47 PST"]
[Termination "Kotlyar_K won on time"]

1. e4 {[%clk 0:02:58.7]} 1... e5 {[%clk 0:02:58]} 2. Nf3 {[%clk 0:02:58.4]} 2...
Nc6 {[%clk 0:02:58]} 3. Bc4 {[%clk 0:02:57.4]} 3... Nf6 {[%clk 0:02:57.9]} 4. d4
{[%clk 0:02:57.5]} 4... exd4 {[%clk 0:02:57.4]} 5. e5 {[%clk 0:02:58.4]} 5... d5
{[%clk 0:02:57.3]} 6. Bb5 {[%clk 0:02:58.8]} 6... Ne4 {[%clk 0:02:57.8]} 7. Nxd4
{[%clk 0:02:58.3]} 7... Bc5 {[%clk 0:02:58]} 8. Be3 {[%clk 0:02:58.4]} 8... O-O
{[%clk 0:02:48.4]} 9. Nxc6 {[%clk 0:02:57.7]} 9... bxc6 {[%clk 0:02:37.3]} 10.
Bxc5 {[%clk 0:02:58.6]} 10... Nxc5 {[%clk 0:02:35.9]} 11. Bxc6 {[%clk
0:02:58.1]} 11... Rb8 {[%clk 0:02:36.5]} 12. Qxd5 {[%clk 0:02:57.5]} 12... Qe7
{[%clk 0:02:37]} 13. O-O {[%clk 0:02:57]} 13... Rxb2 {[%clk 0:02:36.6]} 14. Nc3
{[%clk 0:02:54.7]} 14... Rxc2 {[%clk 0:02:35.7]} 15. Qd4 {[%clk 0:02:52.8]}
15... Ne6 {[%clk 0:02:21.8]} 16. Qd3 {[%clk 0:02:41.3]} 16... Rb2 {[%clk
0:02:17.9]} 17. Nd5 {[%clk 0:02:37.2]} 17... Qg5 {[%clk 0:02:12.6]} 18. g3
{[%clk 0:01:44.7]} 18... Qxe5 {[%clk 0:01:55.2]} 19. Rae1 {[%clk 0:01:14.2]}
19... Qd6 {[%clk 0:01:53.2]} 20. Qc3 {[%clk 0:01:01.2]} 20... Rxa2 {[%clk
0:01:43.6]} 21. Rd1 {[%clk 0:00:46.4]} 21... Qc5 {[%clk 0:01:31.2]} 22. Qe5
{[%clk 0:00:33]} 22... f6 {[%clk 0:01:14.8]} 23. Qe4 {[%clk 0:00:11.6]} 23...
Ng5 {[%clk 0:01:02.8]} 24. Qg2 {[%clk 0:00:05.1]} 24... Bh3 {[%clk 0:00:59.4]}
25. Qh1 {[%clk 0:00:01.6]} 25... Bxf1 {[%clk 0:00:59]} 26. Rxf1 {[%clk
0:00:02.5]} 26... Kh8 {[%clk 0:00:58]} 27. h4 {[%clk 0:00:01.8]} 27... Qxc6
{[%clk 0:00:49.6]} 28. hxg5 {[%clk 0:00:01.8]} 28... fxg5 {[%clk 0:00:49.6]} 0-1

[Event "Early-Titled-Tuesday-Blitz-January-23-2024"]
[Site "Chess.com"]
[Date "2024.01.23"]
[Round "2"]
[White "RCone"]
[Black "maurovargas01"]
[Result "1-0"]
[WhiteElo "2435"]
[BlackElo "1839"]
[TimeControl "180+1"]
[EndTime "8:16:47 PST"]
[Termination "RCone won on time"]

1. e4 {[%clk 0:02:41.5]} 1... c5 {[%clk 0:02:57.5]} 2. Nc3 {[%clk 0:02:40.8]}
2... d6 {[%clk 0:02:57]} 3. f4 {[%clk 0:02:38]} 3... a6 {[%clk 0:02:55.4]} 4.
Nf3 {[%clk 0:02:38]} 4... Nc6 {[%clk 0:02:55.5]} 5. d4 {[%clk 0:02:38.3]} 5...
cxd4 {[%clk 0:02:52.4]} 6. Nxd4 {[%clk 0:02:39.2]} 6... Bd7 {[%clk 0:02:51.4]}
7. Be3 {[%clk 0:02:38]} 7... g6 {[%clk 0:02:51.4]} 8. Qf3 {[%clk 0:02:36.1]}
8... Bg7 {[%clk 0:02:51.5]} 9. O-O-O {[%clk 0:02:36.6]} 9... Nf6 {[%clk
0:02:51.6]} 10. h3 {[%clk 0:02:35.5]} 10... O-O {[%clk 0:02:51.6]} 11. g4 {[%clk
0:02:34.2]} 11... Rc8 {[%clk 0:02:46.5]} 12. Nb3 {[%clk 0:02:31.6]} 12... b5
{[%clk 0:02:40.1]} 13. g5 {[%clk 0:02:31.6]} 13... Nh5 {[%clk 0:02:37.7]} 14.
Nd5 {[%clk 0:02:24.7]} 14... a5 {[%clk 0:02:26.2]} 15. Nb6 {[%clk 0:02:23.8]}
15... Qc7 {[%clk 0:02:21.3]} 16. Nxd7 {[%clk 0:02:23.8]} 16... Qxd7 {[%clk
0:02:19.6]} 17. Bxb5 {[%clk 0:02:24.3]} 17... Qc7 {[%clk 0:02:04.6]} 18. Kb1
{[%clk 0:01:51]} 18... Nb4 {[%clk 0:02:03.1]} 19. c3 {[%clk 0:01:51.1]} 19...
Bxc3 {[%clk 0:01:49]} 20. bxc3 {[%clk 0:01:35.5]} 20... Qxc3 {[%clk 0:01:45.8]}
21. Rh2 {[%clk 0:01:16.2]} 21... Nd3 {[%clk 0:01:08.7]} 22. Rxd3 {[%clk
0:01:03.2]} 22... Qb4 {[%clk 0:01:04.2]} 23. a4 {[%clk 0:01:00.9]} 23... Rc7
{[%clk 0:00:41.7]} 24. Bd2 {[%clk 0:00:52.8]} 24... Qa3 {[%clk 0:00:17.2]} 25.
Bxa5 {[%clk 0:00:48]} 25... Rfc8 {[%clk 0:00:14]} 26. Bxc7 {[%clk 0:00:47.1]}
26... Rxc7 {[%clk 0:00:10]} 27. Rc3 {[%clk 0:00:45.4]} 27... Rxc3 {[%clk
0:00:03.8]} 28. Qxc3 {[%clk 0:00:46.3]} 1-0

[Event "Early-Titled-Tuesday-Blitz-January-23-2024"]
[Site "Chess.com"]
[Date "2024.01.23"]
[Round "2"]
[White "FMVolodymyrSakun"]
[Black "NM_Antelacus"]
[Result "1/2-1/2"]
[WhiteElo "2569"]
[BlackElo "2182"]
[TimeControl "180+1"]
[EndTime "8:16:48 PST"]
[Termination "Game drawn by repetition"]

1. e4 {[%clk 0:03:00.9]} 1... c5 {[%clk 0:02:59.2]} 2. Nf3 {[%clk 0:03:00.4]}
2... Nc6 {[%clk 0:02:59.1]} 3. b3 {[%clk 0:02:59.6]} 3... d5 {[%clk 0:02:54.1]}
4. exd5 {[%clk 0:02:55.8]} 4... Qxd5 {[%clk 0:02:53.8]} 5. Bb2 {[%clk
0:02:55.7]} 5... Nf6 {[%clk 0:02:52.1]} 6. Bc4 {[%clk 0:02:39.1]} 6... Qd6
{[%clk 0:02:45.7]} 7. O-O {[%clk 0:02:29.8]} 7... Bg4 {[%clk 0:02:43.5]} 8. h3
{[%clk 0:01:55.4]} 8... Bh5 {[%clk 0:02:42.5]} 9. Be2 {[%clk 0:01:40.6]} 9... e6
{[%clk 0:02:40.1]} 10. Na3 {[%clk 0:01:33.6]} 10... Be7 {[%clk 0:02:34.7]} 11.
Nc4 {[%clk 0:01:33]} 11... Qc7 {[%clk 0:02:32.4]} 12. Nce5 {[%clk 0:01:27.2]}
12... Nxe5 {[%clk 0:02:29.9]} 13. Nxe5 {[%clk 0:01:25.4]} 13... Bxe2 {[%clk
0:02:25.3]} 14. Qxe2 {[%clk 0:01:25.7]} 14... O-O {[%clk 0:02:21.3]} 15. d3
{[%clk 0:01:21.9]} 15... Nd5 {[%clk 0:02:17.9]} 16. Rae1 {[%clk 0:01:20.3]}
16... Bf6 {[%clk 0:02:16.4]} 17. f4 {[%clk 0:01:18.7]} 17... Ne7 {[%clk
0:02:08.2]} 18. g4 {[%clk 0:01:17.7]} 18... Nc6 {[%clk 0:01:59.1]} 19. g5 {[%clk
0:01:10.8]} 19... Bxe5 {[%clk 0:01:57.8]} 20. fxe5 {[%clk 0:01:10.8]} 20... Nd4
{[%clk 0:01:48.1]} 21. Qg2 {[%clk 0:01:09.7]} 21... Qc6 {[%clk 0:01:45.1]} 22.
Qxc6 {[%clk 0:01:03.7]} 22... Nxc6 {[%clk 0:01:43.6]} 23. Re4 {[%clk 0:01:02.6]}
23... Rad8 {[%clk 0:01:39.4]} 24. a4 {[%clk 0:00:57.6]} 24... Rd5 {[%clk
0:01:36.8]} 25. Kf2 {[%clk 0:00:47.2]} 25... Rfd8 {[%clk 0:01:35.5]} 26. Ke2
{[%clk 0:00:46.1]} 26... Nd4+ {[%clk 0:01:34.8]} 27. Bxd4 {[%clk 0:00:46]} 27...
cxd4 {[%clk 0:01:32.4]} 28. Kd2 {[%clk 0:00:43]} 28... R8d7 {[%clk 0:01:31.4]}
29. Rff4 {[%clk 0:00:38.8]} 29... Rd8 {[%clk 0:01:21.8]} 30. h4 {[%clk
0:00:38.5]} 30... R8d7 {[%clk 0:01:21.6]} 31. Rg4 {[%clk 0:00:38.5]} 31... Kf8
{[%clk 0:01:19.5]} 32. h5 {[%clk 0:00:38.2]} 32... Rd8 {[%clk 0:01:14.1]} 33. h6
{[%clk 0:00:38]} 33... g6 {[%clk 0:01:12.6]} 34. Rgf4 {[%clk 0:00:36.8]} 34...
R8d7 {[%clk 0:01:12.1]} 35. Re2 {[%clk 0:00:35.2]} 35... Ke8 {[%clk 0:01:11.3]}
36. Ree4 {[%clk 0:00:33.6]} 36... Kd8 {[%clk 0:01:10]} 37. Rf3 {[%clk
0:00:34.1]} 37... Re7 {[%clk 0:01:07.2]} 38. c3 {[%clk 0:00:34.2]} 38... dxc3+
{[%clk 0:01:06]} 39. Kxc3 {[%clk 0:00:34.5]} 39... Rc7+ {[%clk 0:01:05.4]} 40.
Kd2 {[%clk 0:00:34.1]} 40... Rcd7 {[%clk 0:01:01.4]} 41. Kc3 {[%clk 0:00:31.7]}
41... Rc7+ {[%clk 0:01:00.7]} 42. Kd2 {[%clk 0:00:31.5]} 42... Rcd7 {[%clk
0:01:00.5]} 43. Ke2 {[%clk 0:00:23.5]} 43... Rc7 {[%clk 0:00:57.5]} 44. Kd2
{[%clk 0:00:19.9]} 1/2-1/2

[Event "Early-Titled-Tuesday-Blitz-January-23-2024"]
[Site "Chess.com"]
[Date "2024.01.23"]
[Round "2"]
[White "Bkmzzzzz"]
[Black "grzechu96"]
[Result "0-1"]
[WhiteElo "2396"]
[BlackElo "2702"]
[TimeControl "180+1"]
[EndTime "8:16:49 PST"]
[Termination "grzechu96 won by checkmate"]

1. e4 {[%clk 0:03:00.9]} 1... c5 {[%clk 0:02:58.1]} 2. Nf3 {[%clk 0:03:01.1]}
2... d6 {[%clk 0:02:54.7]} 3. d4 {[%clk 0:03:01.1]} 3... cxd4 {[%clk 0:02:55.6]}
4. Qxd4 {[%clk 0:03:01.5]} 4... a6 {[%clk 0:02:49.7]} 5. Be3 {[%clk 0:03:00.9]}
5... Nc6 {[%clk 0:02:49.8]} 6. Qb6 {[%clk 0:03:01.5]} 6... Qxb6 {[%clk
0:02:48.2]} 7. Bxb6 {[%clk 0:03:02.4]} 7... Nf6 {[%clk 0:02:48.2]} 8. Nc3 {[%clk
0:03:03]} 8... Bg4 {[%clk 0:02:47.9]} 9. O-O-O {[%clk 0:03:01.1]} 9... Bxf3
{[%clk 0:02:43.2]} 10. gxf3 {[%clk 0:03:02]} 10... Nd7 {[%clk 0:02:42]} 11. Nd5
{[%clk 0:02:48.4]} 11... Nxb6 {[%clk 0:02:30.9]} 12. Nxb6 {[%clk 0:02:49.3]}
12... Rd8 {[%clk 0:02:27.3]} 13. c4 {[%clk 0:02:42.8]} 13... g6 {[%clk
0:02:22.9]} 14. Nd5 {[%clk 0:02:34.1]} 14... Bg7 {[%clk 0:02:18.1]} 15. Nc7+
{[%clk 0:02:32.4]} 15... Kd7 {[%clk 0:02:06.5]} 16. Nd5 {[%clk 0:02:33.1]} 16...
e6 {[%clk 0:02:06.7]} 17. Ne3 {[%clk 0:02:28.3]} 17... Be5 {[%clk 0:01:58.4]}
18. Kb1 {[%clk 0:02:27.2]} 18... Ke7 {[%clk 0:01:57.4]} 19. Be2 {[%clk 0:02:23]}
19... Nd4 {[%clk 0:01:44.5]} 20. Rd2 {[%clk 0:02:22.2]} 20... Nxe2 {[%clk
0:01:17.9]} 21. Rxe2 {[%clk 0:02:23.1]} 21... Rc8 {[%clk 0:01:17.9]} 22. h3
{[%clk 0:02:18.4]} 22... Rc5 {[%clk 0:01:10.9]} 23. Rc1 {[%clk 0:02:07.7]} 23...
Rhc8 {[%clk 0:01:09.7]} 24. b3 {[%clk 0:01:57.3]} 24... Bf4 {[%clk 0:01:07.3]}
25. Rec2 {[%clk 0:01:42.8]} 25... Rh5 {[%clk 0:01:04.2]} 26. Rh1 {[%clk
0:01:42.1]} 26... Rg5 {[%clk 0:01:02]} 27. Kb2 {[%clk 0:01:39.5]} 27... Bxe3
{[%clk 0:01:00.3]} 28. fxe3 {[%clk 0:01:40]} 28... Rg3 {[%clk 0:01:00.8]} 29.
Rf2 {[%clk 0:01:40.6]} 29... Rc5 {[%clk 0:01:00.2]} 30. Kc3 {[%clk 0:01:40]}
30... Rh5 {[%clk 0:01:00.2]} 31. h4 {[%clk 0:01:17.9]} 31... g5 {[%clk
0:00:59.8]} 32. Rfh2 {[%clk 0:01:17.6]} 32... Rxf3 {[%clk 0:00:55.7]} 33. hxg5
{[%clk 0:01:12.2]} 33... Rxg5 {[%clk 0:00:56]} 34. Rxh7 {[%clk 0:00:29.7]} 34...
Rxe3+ {[%clk 0:00:55.3]} 35. Kd4 {[%clk 0:00:30.2]} 35... Rgg3 {[%clk
0:00:34.8]} 36. Rd1 {[%clk 0:00:30.5]} 36... e5+ {[%clk 0:00:34.5]} 37. Kd5
{[%clk 0:00:30.5]} 37... Rd3+ {[%clk 0:00:34.9]} 38. Rxd3 {[%clk 0:00:28.3]}
38... Rxd3# {[%clk 0:00:35.8]} 0-1

[Event "Early-Titled-Tuesday-Blitz-January-23-2024"]
[Site "Chess.com"]
[Date "2024.01.23"]
[Round "2"]
[White "Kiborg95"]
[Black "nickmatta"]
[Result "1-0"]
[WhiteElo "2864"]
[BlackElo "2574"]
[TimeControl "180+1"]
[EndTime "8:16:52 PST"]
[Termination "Kiborg95 won by resignation"]

1. e4 {[%clk 0:02:53.5]} 1... c5 {[%clk 0:02:58.6]} 2. Nc3 {[%clk 0:02:52.9]}
2... Nc6 {[%clk 0:02:55.6]} 3. Nge2 {[%clk 0:02:53.1]} 3... e5 {[%clk
0:02:52.5]} 4. Ng3 {[%clk 0:02:53]} 4... Nf6 {[%clk 0:02:51.9]} 5. Bc4 {[%clk
0:02:53.6]} 5... a6 {[%clk 0:02:48.7]} 6. a4 {[%clk 0:02:53.1]} 6... g6 {[%clk
0:02:44.1]} 7. d3 {[%clk 0:02:53.3]} 7... Bg7 {[%clk 0:02:44.2]} 8. O-O {[%clk
0:02:53.6]} 8... O-O {[%clk 0:02:43.5]} 9. f4 {[%clk 0:02:54.1]} 9... exf4
{[%clk 0:02:38]} 10. Bxf4 {[%clk 0:02:55]} 10... d6 {[%clk 0:02:37.9]} 11. Qd2
{[%clk 0:02:51.5]} 11... Ng4 {[%clk 0:02:34.3]} 12. Bg5 {[%clk 0:02:47]} 12...
Qb6 {[%clk 0:02:20]} 13. Rab1 {[%clk 0:02:40.6]} 13... Be6 {[%clk 0:02:18.4]}
14. Nd5 {[%clk 0:02:33.9]} 14... Bxd5 {[%clk 0:02:06.4]} 15. Bxd5 {[%clk
0:02:34.1]} 15... h6 {[%clk 0:01:47.7]} 16. Bf4 {[%clk 0:02:28]} 16... Nb4
{[%clk 0:01:35.8]} 17. h3 {[%clk 0:02:21.5]} 17... Nxd5 {[%clk 0:01:31]} 18.
exd5 {[%clk 0:02:22.4]} 18... c4+ {[%clk 0:01:20.4]} 19. Kh1 {[%clk 0:02:22.4]}
19... Ne5 {[%clk 0:01:15.9]} 20. d4 {[%clk 0:02:12.9]} 20... Nd7 {[%clk
0:01:15.3]} 21. c3 {[%clk 0:02:11.1]} 21... Kh7 {[%clk 0:01:10.1]} 22. Qe2
{[%clk 0:02:08.3]} 22... Nf6 {[%clk 0:00:50.4]} 23. Qxc4 {[%clk 0:02:02.4]}
23... Rac8 {[%clk 0:00:50.9]} 24. Qa2 {[%clk 0:01:53.3]} 24... Rfe8 {[%clk
0:00:50.8]} 25. Rbe1 {[%clk 0:01:51.8]} 25... h5 {[%clk 0:00:37.6]} 26. Bg5
{[%clk 0:01:49.9]} 26... Rxe1 {[%clk 0:00:36.4]} 27. Rxe1 {[%clk 0:01:49.6]}
27... Qa5 {[%clk 0:00:31.5]} 28. Rf1 {[%clk 0:01:41.8]} 28... Nxd5 {[%clk
0:00:14.4]} 29. Rxf7 {[%clk 0:01:41.2]} 29... Nxc3 {[%clk 0:00:13.7]} 30. bxc3
{[%clk 0:01:19.2]} 30... Qxg5 {[%clk 0:00:14.2]} 31. Ne4 {[%clk 0:01:19.8]}
31... Qc1+ {[%clk 0:00:14.4]} 32. Kh2 {[%clk 0:01:20.5]} 32... Qe3 {[%clk
0:00:14.3]} 33. Qe6 {[%clk 0:01:16.7]} 33... Kh6 {[%clk 0:00:10.4]} 34. Qxc8
{[%clk 0:01:08.1]} 34... Qxe4 {[%clk 0:00:10.8]} 35. Qg8 {[%clk 0:00:46.7]}
35... Be5+ {[%clk 0:00:10.2]} 36. dxe5 {[%clk 0:00:46.5]} 36... Qxe5+ {[%clk
0:00:11.1]} 37. Kg1 {[%clk 0:00:47]} 37... Qe1+ {[%clk 0:00:11.5]} 38. Rf1
{[%clk 0:00:47.3]} 38... Qe3+ {[%clk 0:00:12.1]} 39. Kh1 {[%clk 0:00:47.7]}
39... Qxc3 {[%clk 0:00:11.7]} 40. Qf8+ {[%clk 0:00:48.1]} 1-0

[Event "Early-Titled-Tuesday-Blitz-January-23-2024"]
[Site "Chess.com"]
[Date "2024.01.23"]
[Round "2"]
[White "YurasovMat-2012"]
[Black "SantoBlue"]
[Result "1-0"]
[WhiteElo "2622"]
[BlackElo "2922"]
[TimeControl "180+1"]
[EndTime "8:16:53 PST"]
[Termination "YurasovMat-2012 won by checkmate"]

1. e4 {[%clk 0:03:00.7]} 1... d6 {[%clk 0:02:54.9]} 2. d4 {[%clk 0:02:55.7]}
2... Nf6 {[%clk 0:02:55.5]} 3. Nc3 {[%clk 0:02:53.8]} 3... e5 {[%clk 0:02:55.5]}
4. Nf3 {[%clk 0:02:52.1]} 4... Nbd7 {[%clk 0:02:55.1]} 5. Bc4 {[%clk 0:02:45.7]}
5... Be7 {[%clk 0:02:54.8]} 6. O-O {[%clk 0:02:44.5]} 6... O-O {[%clk
0:02:54.5]} 7. a3 {[%clk 0:02:41.9]} 7... c6 {[%clk 0:02:54.8]} 8. dxe5 {[%clk
0:02:37]} 8... Nxe5 {[%clk 0:02:45.6]} 9. Nxe5 {[%clk 0:02:36]} 9... dxe5 {[%clk
0:02:46.5]} 10. h3 {[%clk 0:02:35.2]} 10... Bc5 {[%clk 0:02:36.7]} 11. Qxd8
{[%clk 0:02:31.3]} 11... Rxd8 {[%clk 0:02:36.6]} 12. Bg5 {[%clk 0:02:30.7]}
12... h6 {[%clk 0:02:32.2]} 13. Bh4 {[%clk 0:02:29.4]} 13... Bd4 {[%clk
0:02:27.9]} 14. Rad1 {[%clk 0:02:25]} 14... g5 {[%clk 0:02:27.6]} 15. Bg3 {[%clk
0:02:24]} 15... Be6 {[%clk 0:02:27.7]} 16. Bd3 {[%clk 0:02:13.1]} 16... Nh5
{[%clk 0:02:24.2]} 17. Bh2 {[%clk 0:02:12.3]} 17... Nf4 {[%clk 0:02:24.4]} 18.
Bxf4 {[%clk 0:02:11.1]} 18... gxf4 {[%clk 0:02:19.1]} 19. Ne2 {[%clk 0:02:10.1]}
19... Bxb2 {[%clk 0:02:15.9]} 20. Rb1 {[%clk 0:02:09.4]} 20... Bxa3 {[%clk
0:02:16.5]} 21. Rxb7 {[%clk 0:02:09.2]} 21... a5 {[%clk 0:02:12.8]} 22. Ra1
{[%clk 0:02:04.9]} 22... Bc5 {[%clk 0:02:04.3]} 23. Ra4 {[%clk 0:01:58.1]} 23...
Kg7 {[%clk 0:01:43.5]} 24. Kf1 {[%clk 0:01:49.3]} 24... Kf6 {[%clk 0:01:43.7]}
25. Ng1 {[%clk 0:01:45.3]} 25... Rdb8 {[%clk 0:01:38.5]} 26. Rxb8 {[%clk
0:01:35.9]} 26... Rxb8 {[%clk 0:01:39.4]} 27. Rxa5 {[%clk 0:01:18.2]} 27... Rb1+
{[%clk 0:01:35.9]} 28. Ke2 {[%clk 0:01:18]} 28... Bb4 {[%clk 0:01:08.3]} 29. Ra4
{[%clk 0:01:11.1]} 29... c5 {[%clk 0:01:09]} 30. c3 {[%clk 0:00:50.8]} 30... c4
{[%clk 0:01:01.8]} 31. Bxb1 {[%clk 0:00:47.3]} 31... Bxc3 {[%clk 0:01:00.5]} 32.
Nf3 {[%clk 0:00:42.7]} 32... Bb2 {[%clk 0:00:52.2]} 33. Ne1 {[%clk 0:00:31.8]}
33... c3 {[%clk 0:00:51.8]} 34. Ba2 {[%clk 0:00:26.8]} 34... Bd7 {[%clk
0:00:50.8]} 35. Ra6+ {[%clk 0:00:25.6]} 35... Kg5 {[%clk 0:00:51.5]} 36. Nf3+
{[%clk 0:00:21.9]} 36... Kh5 {[%clk 0:00:52]} 37. Bxf7# {[%clk 0:00:20.5]} 1-0